[Event "Late-Titled-Tuesday-Blitz-March-12-2024"]
[Site "Chess.com"]
[Date "2024.03.12"]
[Round "3"]
[White "robertoalejandro10"]
[Black "Danito1954"]
[Result "1/2-1/2"]
[WhiteElo "2537"]
[BlackElo "2294"]
[TimeControl "180+1"]
[EndTime "14:27:50 PDT"]
[Termination "Game drawn by 50-move rule"]

1. d4 {[%clk 0:03:00.9]} 1... Nf6 {[%clk 0:02:58.9]} 2. Bg5 {[%clk 0:02:59.7]}
2... e6 {[%clk 0:02:59.8]} 3. e4 {[%clk 0:02:59]} 3... c5 {[%clk 0:02:58.8]} 4.
e5 {[%clk 0:02:56.9]} 4... h6 {[%clk 0:02:58.6]} 5. exf6 {[%clk 0:02:54.2]} 5...
hxg5 {[%clk 0:02:57.8]} 6. fxg7 {[%clk 0:02:53.6]} 6... Bxg7 {[%clk 0:02:57.7]}
7. c3 {[%clk 0:02:53.6]} 7... cxd4 {[%clk 0:02:57.5]} 8. cxd4 {[%clk 0:02:54.5]}
8... Qb6 {[%clk 0:02:57.8]} 9. Qc2 {[%clk 0:02:40.3]} 9... Nc6 {[%clk
0:02:55.4]} 10. Nf3 {[%clk 0:02:39]} 10... Nxd4 {[%clk 0:02:53.4]} 11. Nxd4
{[%clk 0:02:38.1]} 11... Qxd4 {[%clk 0:02:53.3]} 12. Nc3 {[%clk 0:02:36.3]}
12... b6 {[%clk 0:02:53]} 13. Rd1 {[%clk 0:02:05.9]} 13... Qe5+ {[%clk
0:02:49.5]} 14. Be2 {[%clk 0:02:05.6]} 14... Bb7 {[%clk 0:02:47.9]} 15. Nb5
{[%clk 0:01:53.5]} 15... Kf8 {[%clk 0:02:42.9]} 16. Kf1 {[%clk 0:01:37]} 16...
Rxh2 {[%clk 0:02:39.8]} 17. Rg1 {[%clk 0:01:36.5]} 17... Bf6 {[%clk 0:02:24.6]}
18. Rxd7 {[%clk 0:01:22.7]} 18... Be4 {[%clk 0:02:20.1]} 19. Qc7 {[%clk
0:00:46.9]} 19... Qxc7 {[%clk 0:02:06.1]} 20. Nxc7 {[%clk 0:00:45.7]} 20... Rd8
{[%clk 0:02:04.7]} 21. Rxd8+ {[%clk 0:00:43.9]} 21... Bxd8 {[%clk 0:02:05.6]}
22. Nb5 {[%clk 0:00:44.6]} 22... Bf6 {[%clk 0:02:02.1]} 23. b3 {[%clk
0:00:40.2]} 23... Bb1 {[%clk 0:01:58.5]} 24. a4 {[%clk 0:00:38.7]} 24... a6
{[%clk 0:01:57.9]} 25. Nd6 {[%clk 0:00:38.4]} 25... a5 {[%clk 0:01:56.7]} 26.
Nc4 {[%clk 0:00:29.3]} 26... Bd4 {[%clk 0:01:56]} 27. Nd2 {[%clk 0:00:20]} 27...
Bc2 {[%clk 0:01:52.2]} 28. Nf3 {[%clk 0:00:20.3]} 28... Rh4 {[%clk 0:01:49.4]}
29. Nxh4 {[%clk 0:00:16.6]} 29... gxh4 {[%clk 0:01:50.3]} 30. Bc4 {[%clk
0:00:17]} 30... Ke7 {[%clk 0:01:47]} 31. Rh1 {[%clk 0:00:17.2]} 31... Bf6 {[%clk
0:01:47.7]} 32. Ke2 {[%clk 0:00:17.7]} 32... Be4 {[%clk 0:01:47.2]} 33. Ke1
{[%clk 0:00:17.2]} 33... Bxg2 {[%clk 0:01:47]} 34. Rh2 {[%clk 0:00:17]} 34... h3
{[%clk 0:01:47.1]} 35. Bf1 {[%clk 0:00:12.2]} 35... Be5 {[%clk 0:01:47.1]} 36.
Rxg2 {[%clk 0:00:08.8]} 36... hxg2 {[%clk 0:01:47.2]} 37. Bxg2 {[%clk
0:00:09.7]} 37... Kd6 {[%clk 0:01:48.1]} 38. Ke2 {[%clk 0:00:09.9]} 38... Kc5
{[%clk 0:01:48.5]} 39. Kd3 {[%clk 0:00:10.5]} 39... Bd4 {[%clk 0:01:49.3]} 40.
f4 {[%clk 0:00:09.9]} 40... Bb2 {[%clk 0:01:49]} 41. Be4 {[%clk 0:00:09]} 41...
Kb4 {[%clk 0:01:49.5]} 42. Kc2 {[%clk 0:00:09.6]} 42... Bg7 {[%clk 0:01:49.9]}
43. f5 {[%clk 0:00:10.5]} 43... Kc5 {[%clk 0:01:48.8]} 44. fxe6 {[%clk
0:00:10.6]} 44... fxe6 {[%clk 0:01:49.7]} 45. Kd3 {[%clk 0:00:11.1]} 45... Kb4
{[%clk 0:01:49.6]} 46. Kc2 {[%clk 0:00:11.3]} 46... Bf6 {[%clk 0:01:50.1]} 47.
Bd3 {[%clk 0:00:11.2]} 47... Kc5 {[%clk 0:01:51]} 48. Bc4 {[%clk 0:00:11.7]}
48... e5 {[%clk 0:01:51.5]} 49. Kd3 {[%clk 0:00:12.3]} 49... Kd6 {[%clk
0:01:50.9]} 50. Ke4 {[%clk 0:00:12.8]} 50... Be7 {[%clk 0:01:51.5]} 51. Kf5
{[%clk 0:00:13.2]} 51... Bd8 {[%clk 0:01:51.6]} 52. Ke4 {[%clk 0:00:12.8]} 52...
Bc7 {[%clk 0:01:52.3]} 53. Bb5 {[%clk 0:00:13.2]} 53... Kc5 {[%clk 0:01:53.2]}
54. Bc4 {[%clk 0:00:14.1]} 54... Bd6 {[%clk 0:01:53.2]} 55. Bb5 {[%clk 0:00:14]}
55... Kb4 {[%clk 0:01:53.7]} 56. Bc4 {[%clk 0:00:14.9]} 56... Kc3 {[%clk
0:01:54.5]} 57. Kd5 {[%clk 0:00:15.5]} 57... Bc7 {[%clk 0:01:51.2]} 58. Kc6
{[%clk 0:00:15.8]} 58... Bd8 {[%clk 0:01:51.7]} 59. Kd7 {[%clk 0:00:15.5]} 59...
Bh4 {[%clk 0:01:51.7]} 60. Kc6 {[%clk 0:00:15.8]} 60... Bf2 {[%clk 0:01:50.9]}
61. Kd5 {[%clk 0:00:15.7]} 61... Bd4 {[%clk 0:01:50.6]} 62. Ke4 {[%clk
0:00:16.3]} 62... Kd2 {[%clk 0:01:49.9]} 63. Bd5 {[%clk 0:00:16.4]} 63... Ke2
{[%clk 0:01:49.7]} 64. Bc4+ {[%clk 0:00:16.4]} 64... Kd2 {[%clk 0:01:48.5]} 65.
Bd5 {[%clk 0:00:16.5]} 65... Kc3 {[%clk 0:01:49]} 66. Bc4 {[%clk 0:00:16.8]}
66... Kb4 {[%clk 0:01:49.6]} 67. Bd5 {[%clk 0:00:16.9]} 67... Kc5 {[%clk
0:01:50]} 68. Bc4 {[%clk 0:00:17.6]} 68... Bc3 {[%clk 0:01:49.5]} 69. Bb5 {[%clk
0:00:16.6]} 69... Kb4 {[%clk 0:01:48.8]} 70. Bc4 {[%clk 0:00:17.5]} 70... b5
{[%clk 0:01:49.2]} 71. axb5 {[%clk 0:00:06.2]} 71... a4 {[%clk 0:01:49.6]} 72.
bxa4 {[%clk 0:00:06.8]} 72... Kxa4 {[%clk 0:01:49.9]} 73. b6 {[%clk 0:00:07.7]}
73... Bd4 {[%clk 0:01:48.2]} 74. b7 {[%clk 0:00:08.1]} 74... Ba7 {[%clk
0:01:49.1]} 75. Kxe5 {[%clk 0:00:08.5]} 75... Bb8+ {[%clk 0:01:49.5]} 76. Kd5
{[%clk 0:00:08.6]} 76... Bh2 {[%clk 0:01:50.4]} 77. Kc6 {[%clk 0:00:09]} 77...
Ka5 {[%clk 0:01:50.8]} 78. Be6 {[%clk 0:00:09.9]} 78... Ka6 {[%clk 0:01:50.9]}
79. Bd5 {[%clk 0:00:10.5]} 79... Ka7 {[%clk 0:01:51.4]} 80. Kd7 {[%clk
0:00:11.4]} 80... Kb8 {[%clk 0:01:52.3]} 81. Ke6 {[%clk 0:00:11.7]} 81... Bg3
{[%clk 0:01:53.2]} 82. Kf5 {[%clk 0:00:12.6]} 82... Bh2 {[%clk 0:01:54.1]} 83.
Be4 {[%clk 0:00:13.5]} 83... Bc7 {[%clk 0:01:54.7]} 84. Kg4 {[%clk 0:00:14.4]}
84... Bb6 {[%clk 0:01:55.6]} 85. Bf3 {[%clk 0:00:15.3]} 85... Ba7 {[%clk
0:01:56.5]} 86. Kh3 {[%clk 0:00:16.2]} 86... Bb6 {[%clk 0:01:57.2]} 87. Kg2
{[%clk 0:00:17.1]} 87... Bc7 {[%clk 0:01:58.1]} 88. Kf1 {[%clk 0:00:18]} 88...
Bb6 {[%clk 0:01:59]} 89. Ke2 {[%clk 0:00:18.9]} 89... Bc7 {[%clk 0:01:59.9]} 90.
Kd3 {[%clk 0:00:19.4]} 90... Bb6 {[%clk 0:02:00.8]} 91. Kc4 {[%clk 0:00:20.3]}
91... Kc7 {[%clk 0:02:01.7]} 92. Kd5 {[%clk 0:00:21.2]} 92... Ba7 {[%clk
0:02:02.6]} 93. Kc4 {[%clk 0:00:21.9]} 93... Bb8 {[%clk 0:02:03.5]} 94. Kb5
{[%clk 0:00:22.8]} 94... Kd8 {[%clk 0:02:03.8]} 95. Ka6 {[%clk 0:00:23.7]} 95...
Kc7 {[%clk 0:02:04.3]} 96. Kb5 {[%clk 0:00:24.2]} 96... Kd8 {[%clk 0:02:04.9]}
97. Kc5 {[%clk 0:00:25.1]} 97... Kc7 {[%clk 0:02:05.7]} 98. Kd4 {[%clk
0:00:24.9]} 98... Kd8 {[%clk 0:02:06.6]} 99. Ke4 {[%clk 0:00:25.2]} 99... Kc7
{[%clk 0:02:07.4]} 100. Kf5 {[%clk 0:00:26.1]} 100... Kd8 {[%clk 0:02:08.3]}
101. Ke6 {[%clk 0:00:27]} 101... Kc7 {[%clk 0:02:09.2]} 102. Ke7 {[%clk
0:00:27.7]} 102... Ba7 {[%clk 0:02:10.1]} 103. Ke8 {[%clk 0:00:28.1]} 103... Bb8
{[%clk 0:02:11]} 104. Ke7 {[%clk 0:00:28.7]} 104... Ba7 {[%clk 0:02:11.8]} 105.
Be4 {[%clk 0:00:29.3]} 105... Bb8 {[%clk 0:02:12.7]} 106. Ke6 {[%clk 0:00:30]}
106... Kb6 {[%clk 0:02:13]} 107. Kd5 {[%clk 0:00:30.9]} 107... Ka7 {[%clk
0:02:13.7]} 108. Kc6 {[%clk 0:00:31]} 108... Bh2 {[%clk 0:02:14.1]} 109. Kd7
{[%clk 0:00:31.9]} 109... Kb8 {[%clk 0:02:14.8]} 110. Kd8 {[%clk 0:00:32]}
110... Bg1 {[%clk 0:02:15.7]} 111. Kd7 {[%clk 0:00:32.2]} 111... Bf2 {[%clk
0:02:16.6]} 112. Bc6 {[%clk 0:00:33.1]} 112... Be1 {[%clk 0:02:17.5]} 113. Ke6
{[%clk 0:00:34]} 113... Bd2 {[%clk 0:02:18.4]} 114. Kd5 {[%clk 0:00:34.9]}
114... Bc1 {[%clk 0:02:19.3]} 115. Kc4 {[%clk 0:00:35.8]} 115... Bh6 {[%clk
0:02:19.2]} 116. Kb5 {[%clk 0:00:36.7]} 116... Bg7 {[%clk 0:02:20.1]} 117. Ka6
{[%clk 0:00:37.6]} 117... Bh8 {[%clk 0:02:21]} 118. Bd5 {[%clk 0:00:38.2]}
118... Bg7 {[%clk 0:02:21.9]} 119. Be4 {[%clk 0:00:39.1]} 119... Bf8 {[%clk
0:02:22.8]} 120. Bf5 {[%clk 0:00:39.9]} 120... Bg7 {[%clk 0:02:23.2]} 121. Kb5
{[%clk 0:00:40.8]} 121... Bf6 {[%clk 0:02:24.1]} 122. Bc8 {[%clk 0:00:41.7]}
122... Bg5 {[%clk 0:02:24.9]} 123. Kc6 {[%clk 0:00:42.6]} 123... Bh6 {[%clk
0:02:25.8]} 124. Kd7 {[%clk 0:00:43.2]} 124... Bg7 {[%clk 0:02:26.7]} 125. Ke6
{[%clk 0:00:44.1]} 1/2-1/2

[Event "Late-Titled-Tuesday-Blitz-March-12-2024"]
[Site "Chess.com"]
[Date "2024.03.12"]
[Round "3"]
[White "ChessLover0108"]
[Black "Mikhail_Bryakin"]
[Result "1-0"]
[WhiteElo "2947"]
[BlackElo "2732"]
[TimeControl "180+1"]
[EndTime "14:27:59 PDT"]
[Termination "ChessLover0108 won on time"]

1. c4 {[%clk 0:02:59.8]} 1... Nf6 {[%clk 0:02:54.6]} 2. Nf3 {[%clk 0:02:59.2]}
2... c6 {[%clk 0:02:54.9]} 3. e3 {[%clk 0:02:58.9]} 3... d5 {[%clk 0:02:55.6]}
4. Nc3 {[%clk 0:02:59.6]} 4... Bg4 {[%clk 0:02:53.6]} 5. cxd5 {[%clk 0:02:57.2]}
5... Bxf3 {[%clk 0:02:54.1]} 6. gxf3 {[%clk 0:02:41.1]} 6... cxd5 {[%clk
0:02:54.5]} 7. Qb3 {[%clk 0:02:41.1]} 7... Qd7 {[%clk 0:02:53.4]} 8. d4 {[%clk
0:02:32.5]} 8... Nc6 {[%clk 0:02:52.3]} 9. Bd2 {[%clk 0:02:33.2]} 9... e6 {[%clk
0:02:50.9]} 10. Rc1 {[%clk 0:02:33.7]} 10... Be7 {[%clk 0:02:40.1]} 11. Na4
{[%clk 0:02:30.4]} 11... O-O {[%clk 0:02:37.9]} 12. Bb5 {[%clk 0:02:31]} 12...
Rfc8 {[%clk 0:02:34.5]} 13. O-O {[%clk 0:02:27.3]} 13... Qd6 {[%clk 0:02:14.7]}
14. a3 {[%clk 0:02:22.7]} 14... Bf8 {[%clk 0:02:08.6]} 15. Nc5 {[%clk
0:02:11.4]} 15... Rab8 {[%clk 0:02:01.8]} 16. f4 {[%clk 0:01:44.3]} 16... g6
{[%clk 0:01:34.7]} 17. Rc2 {[%clk 0:01:41.5]} 17... a6 {[%clk 0:01:03.6]} 18.
Bd3 {[%clk 0:01:37.1]} 18... Nd7 {[%clk 0:00:59.1]} 19. Nxb7 {[%clk 0:01:20.3]}
19... Qc7 {[%clk 0:00:57.6]} 20. Bxa6 {[%clk 0:01:20]} 20... Nxd4 {[%clk
0:00:54.8]} 21. Rxc7 {[%clk 0:01:19.4]} 21... Nxb3 {[%clk 0:00:55]} 22. Rxc8
{[%clk 0:01:14.3]} 22... Rxc8 {[%clk 0:00:55.6]} 23. Bc3 {[%clk 0:00:42.9]}
23... Rb8 {[%clk 0:00:48]} 24. a4 {[%clk 0:00:34.7]} 24... Nb6 {[%clk
0:00:22.8]} 25. a5 {[%clk 0:00:19.2]} 25... Nc4 {[%clk 0:00:23.4]} 26. Bxc4
{[%clk 0:00:17.9]} 26... dxc4 {[%clk 0:00:23.9]} 27. a6 {[%clk 0:00:15.9]} 27...
Ra8 {[%clk 0:00:24.4]} 28. Rd1 {[%clk 0:00:16.5]} 28... Rxa6 {[%clk 0:00:20.2]}
29. Rd8 {[%clk 0:00:17.1]} 29... Rb6 {[%clk 0:00:20.9]} 30. Rd7 {[%clk
0:00:13.6]} 30... h5 {[%clk 0:00:08]} 31. Nd8 {[%clk 0:00:13.8]} 31... Rd6
{[%clk 0:00:08.4]} 32. Rxf7 {[%clk 0:00:05.3]} 32... Rxd8 {[%clk 0:00:07.9]} 33.
Rf6 {[%clk 0:00:06.2]} 33... Re8 {[%clk 0:00:03.1]} 34. Rxg6+ {[%clk 0:00:06.2]}
34... Kf7 {[%clk 0:00:03.8]} 35. Rg5 {[%clk 0:00:06.4]} 35... Nc1 {[%clk
0:00:03.8]} 36. Kf1 {[%clk 0:00:06.1]} 36... Nd3 {[%clk 0:00:04]} 37. Rxh5
{[%clk 0:00:06.7]} 37... Rb8 {[%clk 0:00:04.3]} 38. Rh7+ {[%clk 0:00:07.3]}
38... Kg6 {[%clk 0:00:04.7]} 39. Rc7 {[%clk 0:00:03.6]} 39... Nxb2 {[%clk
0:00:04.6]} 40. Rc6 {[%clk 0:00:03.3]} 40... Nd3 {[%clk 0:00:02.8]} 41. Rxc4
{[%clk 0:00:02.2]} 41... Kf7 {[%clk 0:00:02.4]} 42. Ke2 {[%clk 0:00:02.4]} 42...
Nb2 {[%clk 0:00:02.1]} 43. Rc7+ {[%clk 0:00:02.4]} 43... Ke8 {[%clk 0:00:02.8]}
44. Be5 {[%clk 0:00:02.9]} 44... Na4 {[%clk 0:00:02.6]} 45. Rc6 {[%clk
0:00:03.4]} 45... Rb4 {[%clk 0:00:02.8]} 46. Rxe6+ {[%clk 0:00:03.7]} 46... Kf7
{[%clk 0:00:03.4]} 47. Rf6+ {[%clk 0:00:03.9]} 47... Ke8 {[%clk 0:00:04.1]} 48.
Rxf8+ {[%clk 0:00:04.2]} 48... Kxf8 {[%clk 0:00:04]} 49. Bd6+ {[%clk 0:00:04.7]}
1-0

[Event "Late-Titled-Tuesday-Blitz-March-12-2024"]
[Site "Chess.com"]
[Date "2024.03.12"]
[Round "3"]
[White "LeoWin2012"]
[Black "zverr1"]
[Result "0-1"]
[WhiteElo "2195"]
[BlackElo "2573"]
[TimeControl "180+1"]
[EndTime "14:28:03 PDT"]
[Termination "zverr1 won by checkmate"]

1. d4 {[%clk 0:03:00.9]} 1... Nf6 {[%clk 0:02:58.9]} 2. c4 {[%clk 0:02:59.3]}
2... g6 {[%clk 0:02:59]} 3. Nc3 {[%clk 0:02:59.2]} 3... d5 {[%clk 0:02:59.1]} 4.
cxd5 {[%clk 0:02:57.7]} 4... Nxd5 {[%clk 0:03:00]} 5. Nxd5 {[%clk 0:02:58.1]}
5... Qxd5 {[%clk 0:03:00.2]} 6. Nf3 {[%clk 0:02:57.4]} 6... Bg7 {[%clk 0:03:00]}
7. Bf4 {[%clk 0:02:54.8]} 7... c5 {[%clk 0:02:55.9]} 8. Rc1 {[%clk 0:02:52.6]}
8... O-O {[%clk 0:02:51.5]} 9. Rxc5 {[%clk 0:02:47.2]} 9... Qxa2 {[%clk
0:02:51.3]} 10. Qc1 {[%clk 0:02:46]} 10... Nc6 {[%clk 0:02:49.2]} 11. e3 {[%clk
0:02:43.3]} 11... Nb4 {[%clk 0:02:15.4]} 12. Be2 {[%clk 0:02:36.1]} 12... Bg4
{[%clk 0:02:03.8]} 13. Qd2 {[%clk 0:02:18.2]} 13... Bxf3 {[%clk 0:01:53.6]} 14.
Bxf3 {[%clk 0:02:16.2]} 14... Qb1+ {[%clk 0:01:39]} 15. Ke2 {[%clk 0:01:53.6]}
15... Qxh1 {[%clk 0:01:39.9]} 16. Rc1 {[%clk 0:01:47]} 16... Qxc1 {[%clk
0:01:31.2]} 17. Qxc1 {[%clk 0:01:47.9]} 17... Rac8 {[%clk 0:01:27.4]} 18. Qd1
{[%clk 0:01:43.5]} 18... Rc2+ {[%clk 0:01:23.3]} 19. Kf1 {[%clk 0:01:43.6]}
19... Rfc8 {[%clk 0:01:22.5]} 20. e4 {[%clk 0:01:35.6]} 20... Na2 {[%clk
0:00:44.8]} 21. e5 {[%clk 0:00:16.5]} 21... Rc1 {[%clk 0:00:43.1]} 22. Bxc1
{[%clk 0:00:15.7]} 22... Rxc1 {[%clk 0:00:44]} 23. Qxc1 {[%clk 0:00:15]} 23...
Nxc1 {[%clk 0:00:44.9]} 24. Bxb7 {[%clk 0:00:14.6]} 24... e6 {[%clk 0:00:39.7]}
25. f4 {[%clk 0:00:12.4]} 25... Nd3 {[%clk 0:00:39.3]} 26. g3 {[%clk 0:00:09.2]}
26... Nxb2 {[%clk 0:00:39.4]} 27. d5 {[%clk 0:00:09.8]} 27... exd5 {[%clk
0:00:39.5]} 28. Bxd5 {[%clk 0:00:10.5]} 28... Nd3 {[%clk 0:00:35.9]} 29. Ke2
{[%clk 0:00:09.9]} 29... Nc5 {[%clk 0:00:35.1]} 30. Kd2 {[%clk 0:00:09.3]} 30...
Kf8 {[%clk 0:00:34.5]} 31. Kc3 {[%clk 0:00:09.5]} 31... Ke7 {[%clk 0:00:33.3]}
32. Kc4 {[%clk 0:00:09.2]} 32... Nd7 {[%clk 0:00:31.8]} 33. Kb5 {[%clk
0:00:09.3]} 33... Nb8 {[%clk 0:00:29.6]} 34. Bb3 {[%clk 0:00:05.7]} 34... f6
{[%clk 0:00:29.4]} 35. e6 {[%clk 0:00:03.6]} 35... f5 {[%clk 0:00:28.6]} 36. h3
{[%clk 0:00:03.4]} 36... h5 {[%clk 0:00:27.1]} 37. Kc5 {[%clk 0:00:02.5]} 37...
Bc3 {[%clk 0:00:24.6]} 38. Kd5 {[%clk 0:00:02.5]} 38... Be1 {[%clk 0:00:24.7]}
39. g4 {[%clk 0:00:02.8]} 39... hxg4 {[%clk 0:00:23.8]} 40. hxg4 {[%clk
0:00:02.8]} 40... fxg4 {[%clk 0:00:24]} 41. Bd1 {[%clk 0:00:01.9]} 41... g3
{[%clk 0:00:23.9]} 42. Bf3 {[%clk 0:00:02]} 42... a5 {[%clk 0:00:23.6]} 43. Kc4
{[%clk 0:00:01.5]} 43... Kxe6 {[%clk 0:00:22.7]} 44. Kb5 {[%clk 0:00:01.6]}
44... Kf5 {[%clk 0:00:20.7]} 45. Bg2 {[%clk 0:00:01.9]} 45... Kxf4 {[%clk
0:00:20.7]} 46. Ka4 {[%clk 0:00:02.4]} 46... Ke3 {[%clk 0:00:20.8]} 47. Ka3
{[%clk 0:00:02.5]} 47... Kf2 {[%clk 0:00:21.7]} 48. Bc6 {[%clk 0:00:02.3]} 48...
g2 {[%clk 0:00:22.1]} 49. Bxg2 {[%clk 0:00:03.2]} 49... Kxg2 {[%clk 0:00:22.6]}
50. Ka2 {[%clk 0:00:04]} 50... Bb4 {[%clk 0:00:20.7]} 51. Kb1 {[%clk 0:00:04.9]}
51... Kf3 {[%clk 0:00:21.6]} 52. Ka2 {[%clk 0:00:04.6]} 52... g5 {[%clk
0:00:22.5]} 53. Kb3 {[%clk 0:00:04.9]} 53... g4 {[%clk 0:00:23.4]} 54. Ka4
{[%clk 0:00:05.8]} 54... g3 {[%clk 0:00:24.3]} 55. Kb3 {[%clk 0:00:06.5]} 55...
g2 {[%clk 0:00:25.2]} 56. Ka2 {[%clk 0:00:07.4]} 56... g1=Q {[%clk 0:00:24.9]}
57. Kb3 {[%clk 0:00:08.3]} 57... Qc1 {[%clk 0:00:23]} 58. Ka4 {[%clk 0:00:09.2]}
58... Qc6+ {[%clk 0:00:21.5]} 59. Kb3 {[%clk 0:00:09.2]} 59... a4+ {[%clk
0:00:21.2]} 60. Kxb4 {[%clk 0:00:09.2]} 60... a3 {[%clk 0:00:21.3]} 61. Kxa3
{[%clk 0:00:09.5]} 61... Qb5 {[%clk 0:00:21.4]} 62. Ka2 {[%clk 0:00:09.6]} 62...
Ke3 {[%clk 0:00:22.3]} 63. Ka1 {[%clk 0:00:10.2]} 63... Kd3 {[%clk 0:00:23.2]}
64. Ka2 {[%clk 0:00:10.9]} 64... Kc2 {[%clk 0:00:24.1]} 65. Ka1 {[%clk
0:00:11.6]} 65... Qa5# {[%clk 0:00:24.9]} 0-1

[Event "Late-Titled-Tuesday-Blitz-March-12-2024"]
[Site "Chess.com"]
[Date "2024.03.12"]
[Round "3"]
[White "nindjaxx8"]
[Black "northridgehawk"]
[Result "1-0"]
[WhiteElo "2685"]
[BlackElo "2320"]
[TimeControl "180+1"]
[EndTime "14:28:06 PDT"]
[Termination "nindjaxx8 won by resignation"]

1. d4 {[%clk 0:02:56.4]} 1... Nf6 {[%clk 0:03:00.2]} 2. c4 {[%clk 0:02:55.9]}
2... g6 {[%clk 0:03:01.1]} 3. Nc3 {[%clk 0:02:55.9]} 3... d5 {[%clk 0:03:01.2]}
4. cxd5 {[%clk 0:02:55.6]} 4... Nxd5 {[%clk 0:03:02.1]} 5. e4 {[%clk 0:02:55.1]}
5... Nxc3 {[%clk 0:03:02.1]} 6. bxc3 {[%clk 0:02:56]} 6... Bg7 {[%clk
0:03:02.9]} 7. Be3 {[%clk 0:02:56.4]} 7... c5 {[%clk 0:03:03.1]} 8. Rc1 {[%clk
0:02:56]} 8... Nc6 {[%clk 0:03:03.4]} 9. Nf3 {[%clk 0:02:55.2]} 9... O-O {[%clk
0:03:02.7]} 10. Be2 {[%clk 0:02:53.9]} 10... cxd4 {[%clk 0:03:01.1]} 11. cxd4
{[%clk 0:02:54.4]} 11... Qa5+ {[%clk 0:03:01.5]} 12. Bd2 {[%clk 0:02:26.5]}
12... Qxa2 {[%clk 0:02:51.7]} 13. d5 {[%clk 0:02:24.3]} 13... Ne5 {[%clk
0:02:45]} 14. O-O {[%clk 0:02:20.7]} 14... Nxf3+ {[%clk 0:02:41.1]} 15. Bxf3
{[%clk 0:02:18.4]} 15... Qa6 {[%clk 0:02:40.8]} 16. Qb3 {[%clk 0:02:14.8]} 16...
e6 {[%clk 0:02:37.6]} 17. Rfd1 {[%clk 0:02:06.2]} 17... exd5 {[%clk 0:02:38]}
18. exd5 {[%clk 0:02:07.1]} 18... Bf5 {[%clk 0:02:35.4]} 19. Bf4 {[%clk
0:01:57.6]} 19... Rac8 {[%clk 0:02:34.6]} 20. Rxc8 {[%clk 0:01:55.9]} 20... Rxc8
{[%clk 0:02:35.5]} 21. d6 {[%clk 0:01:56.1]} 21... b6 {[%clk 0:02:18.2]} 22. Qe3
{[%clk 0:01:39.8]} 22... Qa4 {[%clk 0:02:06.6]} 23. h3 {[%clk 0:01:28.4]} 23...
Rc3 {[%clk 0:01:32.1]} 24. Qe7 {[%clk 0:00:09.5]} 24... Qxf4 {[%clk 0:00:50.5]}
25. d7 {[%clk 0:00:09.6]} 25... Bxd7 {[%clk 0:00:45.4]} 26. Qd8+ {[%clk
0:00:09.8]} 26... Bf8 {[%clk 0:00:44.8]} 27. Qxd7 {[%clk 0:00:10.4]} 27... Rc7
{[%clk 0:00:40.1]} 28. Qd8 {[%clk 0:00:08.5]} 28... Rc1 {[%clk 0:00:34.3]} 29.
g3 {[%clk 0:00:04.4]} 29... Rxd1+ {[%clk 0:00:31.7]} 30. Bxd1 {[%clk 0:00:05]}
30... Qe5 {[%clk 0:00:29]} 31. Qd7 {[%clk 0:00:03.7]} 31... Qe6 {[%clk
0:00:22.9]} 32. Qd3 {[%clk 0:00:02.5]} 32... Bc5 {[%clk 0:00:23.2]} 33. Kg2
{[%clk 0:00:01.7]} 33... a5 {[%clk 0:00:22.5]} 34. Bb3 {[%clk 0:00:01.8]} 34...
Qf6 {[%clk 0:00:23]} 35. Qe2 {[%clk 0:00:02.1]} 35... Kg7 {[%clk 0:00:19.6]} 36.
h4 {[%clk 0:00:02.5]} 36... Qc6+ {[%clk 0:00:18.1]} 37. Kg1 {[%clk 0:00:01.9]}
37... a4 {[%clk 0:00:18.8]} 38. Bc4 {[%clk 0:00:01.9]} 38... a3 {[%clk 0:00:18]}
39. Qe5+ {[%clk 0:00:02.1]} 39... Qf6 {[%clk 0:00:17.9]} 40. Qe2 {[%clk
0:00:02.8]} 40... Qd6 {[%clk 0:00:13.7]} 41. Kg2 {[%clk 0:00:03]} 41... Qd4
{[%clk 0:00:13.4]} 42. Ba2 {[%clk 0:00:01.7]} 42... b5 {[%clk 0:00:13.4]} 43.
Kg1 {[%clk 0:00:01.3]} 43... b4 {[%clk 0:00:13.4]} 44. Kg2 {[%clk 0:00:01.7]}
44... Qc3 {[%clk 0:00:11.1]} 45. Qe4 {[%clk 0:00:01.6]} 45... b3 {[%clk
0:00:10.5]} 46. Qd5 {[%clk 0:00:01.4]} 46... bxa2 {[%clk 0:00:09.9]} 47. Qxa2
{[%clk 0:00:02.2]} 47... Qb2 {[%clk 0:00:09.4]} 48. Qc4 {[%clk 0:00:02.3]} 48...
Qxf2+ {[%clk 0:00:10.3]} 49. Kh3 {[%clk 0:00:02.7]} 49... Qf5+ {[%clk
0:00:10.5]} 50. g4 {[%clk 0:00:02.4]} 50... Bd6 {[%clk 0:00:11.4]} 51. gxf5
{[%clk 0:00:02.6]} 51... gxf5 {[%clk 0:00:10.8]} 52. Qd4+ {[%clk 0:00:03]} 52...
Kg6 {[%clk 0:00:08.2]} 53. Qxd6+ {[%clk 0:00:03.3]} 53... f6 {[%clk 0:00:08.4]}
54. Qxa3 {[%clk 0:00:04.2]} 54... h5 {[%clk 0:00:08.8]} 55. Qf3 {[%clk
0:00:04.7]} 55... f4 {[%clk 0:00:09.7]} 56. Qxf4 {[%clk 0:00:05.2]} 1-0